[Event "BL 2024-25"]
[Site "Austria"]
[Date "2024.10.13"]
[Round "5.22"]
[White "Korpa, Bence"]
[Black "Rodshtein, Maxim"]
[Result "0-1"]
[Annotator "TA"]
[ECO "A48"]
[WhiteElo "2550"]
[BlackElo "2613"]
[PlyCount "78"]
[EventDate "2024.08.28"]
[EventType "team-tourn"]
[EventCountry "AUT"]
[SourceTitle "playchess.com"]
[Source "ChessBase"]
[SourceQuality "1"]
[WhiteTeam "Fuerstenfeld-Hartberg"]
[BlackTeam "Linz"]
[TimeControl "40/5400+30:1800+30"]

1. d4 {[%emt 1:31:00]} Nf6 {[%emt 0:00:54]} 2. Nf3 {[%emt 1:31:26]} g6 {[%emt 0:02:01]} 3. Bg5 {[%emt 0:01:09]} Bg7 {[%emt 0:00:34]} 4. Nbd2 {[%emt 0:00:15]} h6 {[%emt 0:01:19]} 5. Bh4 {[%emt 0:00:24]} O-O {[%emt 0:02:05]} 6. e4 {[%emt 0:12:12]} d6 {[%emt 0:01:15]} 7. c3 {[%emt 0:04:56]} c5 {[%emt 0:04:20]} 8. dxc5 {[%emt 0:00:54]} dxc5 {[%emt 0:00:16]} 9. Bc4 {[%emt 1:14:50]} Nc6 {[%emt 0:03:05]} 10. Qe2 {[%emt 0:00:35] A48: 1 d4 Nf6 2 Nf3 g6: Torre, London and Colle Systems.} Nh5 {[%emt 0:17:43]} 11. Qe3 {[%emt 0:05:48]} b6 {[%emt 0:01:39]} 12. O-O-O {[%emt 0:13:50]} Qc7 {[%emt 0:07:30]} 13. Bg3 {[%emt 0:06:18]} e5 {[%emt 0:12:56]} 14. Bd5 {[%emt 0:03:50]} Ba6 $146 {[%emt 0:01:11]} ({Predecessor:} 14... Bb7 15. Nc4 Rad8 16. Bxe5 Nxe5 17. Nfxe5 Bxe5 18. Nxe5 Bxd5 19. exd5 Rfe8 20. Rhe1 f6 {½-½ Rashkovsky,N (2523)-Dobrov,V (2272) Oberwart op 2000 (7)}) 15. Nc4 {[%emt 0:15:23]} Rad8 {[%emt 0:03:38]} 16. b3 {[%emt 0:31:59]} Bxc4 {[%emt 0:09:07]} 17. bxc4 {[%emt 0:10:18]} Nf4 {[%emt 0:06:28]} 18. Bxf4 {[%emt 0:05:02]} exf4 {[%emt 0:00:10]} 19. Qd2 {[%emt 0:00:33]} a6 {[%emt 0:08:44]} 20. g3 {[%emt 0:00:46]} b5 {[%emt 0:01:31]} 21. Qxf4 {[%emt 0:15:15]} Qa5 {[%emt 0:01:48]} 22. Kd2 {[%emt 0:00:35]} Ne7 {[%emt 0:07:09]} 23. Ke2 {[%emt 0:01:16]} g5 {[%emt 0:01:26]} 24. Qe3 {[%emt 0:01:14]} Rfe8 {[%emt 0:01:54]} 25. Qxc5 {[%emt 0:01:15]} Nxd5 {[%emt 0:00:21]} (25... Bxc3 26. Kf1 $15) (25... Qxc3 26. Rd3 Rxd5 27. Rxd5 Nxd5 28. Qxd5 Qxc4+ (28... bxc4 29. Nd2 $15) 29. Qxc4 bxc4 30. Ke3 $17) (25... Qxa2+ 26. Kf1 $17 (26. Rd2 $2 Qa4 $19)) (25... Qa4 $19 {is more deadly.} 26. Bb7 Qc2+ (26... Qxc4+ $2 27. Qxc4 bxc4 28. Rxd8 $18) (26... Qxa2+ 27. Rd2 $19) 27. Rd2 Rxd2+ (27... Qxc3 28. Rhd1 $11) 28. Nxd2 Bxc3) 26. cxd5 $17 {[%emt 0:00:45]} Rxe4+ {[%emt 0:00:18]} (26... Bxc3 27. Kf1 $15) 27. Kf1 {[%emt 0:00:09]} Bf8 {[%emt 0:02:23]} (27... Bxc3 28. d6 $11) (27... Qxc3 28. Qxc3 Bxc3 29. Rd3) 28. d6 {[%emt 0:00:34]} Qxa2 {[%emt 0:01:06]} 29. Kg2 {[%emt 0:00:34] [#]} Qc4 $1 {[%emt 0:00:16]} 30. Qf5 {[%emt 0:00:43] [#]} Qe6 {[%emt 0:02:23]} (30... Rxd6 $2 31. Rxd6 (31. Ne5 Rxe5 32. Qxe5 Qc6+ 33. f3 Re6 $15) 31... Bxd6 32. Nd2 $18) (30... Bxd6 $2 31. Nxg5 (31. Nd2 Re5 $18) 31... hxg5 32. Qxg5+ Kh7 33. Qxd8 $18) (30... Qc6 $1 $17 {[%cal Og5g4] And now ...g4! would win.} 31. Rd5 (31. h4 $2 g4 $19) 31... Rxd6) 31. Qc5 $2 {[%emt 0:01:14]} (31. Nd4 Qe8 32. d7 Rxd7 $17 (32... Qxd7 $2 33. Qxe4 Re8 34. Qf5 $18)) ({Better is} 31. Qxe6 $1 $15 fxe6 (31... Rxe6 32. d7 $11) 32. d7) 31... Rc4 {[%emt 0:00:15]} (31... Bxd6 32. Qb6 Qf6 33. Qxa6 $11) 32. Qa7 $2 {[%emt 0:00:16]} (32. Qb6 $17 Rxd6 33. Rxd6 Qxd6 34. Qxd6 Bxd6 35. Ra1) 32... g4 $19 {[%emt 0:00:42]} (32... Rxc3 33. Rhe1 Qf5 34. Qb7 $17) (32... Bxd6 $2 33. Qb6 Qf6 34. Ne5 Rxc3 (34... Bxe5 35. Rxd8+ Kg7 36. Qxf6+ Bxf6 37. Ra8 $16) 35. Rhe1 $19) 33. Nd4 {[%emt 0:00:37]} (33. Nh4 $142 Qe4+ (33... Rxc3 $2 34. Rhe1 $19) 34. f3 gxf3+ 35. Nxf3) 33... Qe4+ {[%emt 0:00:22]} 34. f3 {[%emt 0:00:07]} gxf3+ {[%emt 0:00:06]} 35. Kf2 {[%emt 0:00:34]} (35. Nxf3 $19 Rxc3 (35... Rxd6 $2 36. Rxd6 Bxd6 37. Re1 $19) 36. Rhf1 Rxd6 (36... Bxd6 37. Rxd6 Rxd6 38. Qb8+ Kh7 39. Qxd6 $16) 37. Rxd6 Bxd6 38. Qb6 Rc2+ 39. Rf2) 35... Rxc3 {[%emt 0:00:45]} (35... Rxd4 $142 36. Rhe1 Qc2+ (36... R4xd6 37. Rxe4 Rxd1 38. Kxf3 $14) 37. Kxf3 Rxd1 38. Qf2 Qxf2+ (38... Qxc3+ $2 39. Re3 $19) 39. Kxf2 Rxe1 (39... R1xd6 $2 40. Kg2 $19) (39... Rd2+ $2 40. Kf3 $19) 40. Kxe1 Rxd6 (40... Re8+ $2 41. Kd1 $19) 41. g4 a5 (41... Re6+ {leads to mate.} 42. Kf1 a5 43. Kg2 a4 44. Kg3 a3 45. g5 a2 46. gxh6 a1=Q 47. h7+ Kxh7 48. Kg2 Qxc3 49. Kf2 Bc5+ 50. Kg2 Re2+ 51. Kh1 Qf3#) 42. h3 a4 (42... Re6+ 43. Kf1 a4 44. Kg2 a3 45. Kh2 a2 46. g5 a1=Q 47. gxh6 Rg6 48. h7+ Kxh7 49. h4 Qg1+ 50. Kh3 Qh1#) 43. Ke2 a3 44. c4 bxc4 (44... a2 45. c5 Re6+ 46. Kf2 a1=Q 47. g5 Bxc5+ 48. Kg3 Qg1+ 49. Kf4 Bd6+ 50. Kf5 Qxg5#) 45. Ke3 a2 46. Ke4 a1=Q (46... a1=B 47. h4 c3 48. h5 c2 49. g5 c1=Q 50. g6 Re6+ 51. Kf3 Qf1+ 52. Kg4 Re4+ 53. Kg3 Be5#) 47. g5 Rd4+ (47... hxg5 48. Kf3 Qf1+ 49. Ke3 Rd3+ 50. Ke4 Qf4#) 48. Ke3 Qc3+ (48... hxg5 49. Kf2 Qb2+ 50. Ke3 Rf4 51. h4 Qf2#) 49. Kf2 Rd2+ 50. Kg1 Qc1#) 36. Rhe1 $19 {[%emt 0:00:11]} Qd5 {[%emt 0:00:11]} 37. Rd2 {[%emt 0:00:56]} (37. Ne2 $142 Rd3 (37... fxe2 $2 {too greedy.} 38. Rxd5 Rxd6 39. Rxd6 $18) 38. Rxd3 Qxd3 39. Qd4 Rxd6 40. Qg4+ Kh7 (40... Bg7 $2 41. Qxf3 Qxf3+ 42. Kxf3 $19) 41. Nf4 Qc2+ 42. Kf1) 37... Qxd6 {[%emt 0:00:46]} (37... Bxd6 $142 38. Qxa6 Bc5) 38. Re4 {[%emt 0:00:51]} Qg6 {[%emt 0:00:34]} 39. Rf4 {[%emt 0:01:08]} Bc5 {[%emt 0:00:23]} 0-1

[Event "BL 2024-25"]
[Site "Austria"]
[Date "2024.10.13"]
[Round "5.23"]
[White "Shimanov, Aleksandr"]
[Black "Schernthaner, David"]
[Result "1-0"]
[Annotator "TA"]
[ECO "A46"]
[WhiteElo "2582"]
[BlackElo "2389"]
[PlyCount "83"]
[EventDate "2024.08.28"]
[EventType "team-tourn"]
[EventCountry "AUT"]
[SourceTitle "playchess.com"]
[Source "ChessBase"]
[SourceQuality "1"]
[WhiteTeam "Linz"]
[BlackTeam "Fuerstenfeld-Hartberg"]
[TimeControl "40/5400+30:1800+30"]

{[%evp 20,83,-26,-35,-22,-28,4,-4,0,-52,-13,-52,-58,-46,-55,-54,-58,-52,-56,-45,-37,-57,-29,-48,-49,-60,-18,-26,-7,-33,-35,-22,108,0,0,0,0,-23,0,0,270,360,333,324,458,451,464,324,333,290,332,318,268,241,264,269,255,268,306,314,345,291,488,489,543,556]} 1. Nf3 {[%emt 0:00:22]} Nf6 {[%emt 0:00:07]} 2. d4 {[%emt 0:02:32]} e6 {[%emt 0:00:22]} 3. Bg5 {[%emt 0:00:56]} h6 {[%emt 0:00:24]} 4. Bh4 {[%emt 0:00:39]} c5 {[%emt 0:00:22]} 5. e3 {[%emt 0:00:22]} cxd4 {[%emt 0:05:27]} 6. exd4 {[%emt 0:00:22]} Qb6 {[%emt 0:00:11] A46: 1 d4 Nf6 2 Nf3 e6: Torre, London and Colle Systems.} 7. Bxf6 {[%emt 0:07:12]} gxf6 {[%emt 0:09:02]} 8. b3 {[%emt 0:05:27]} Bg7 $146 {[%emt 0:09:23]} ({Predecessor:} 8... Qc7 9. a3 d5 10. Bb5+ Bd7 11. Bxd7+ Nxd7 12. O-O O-O-O 13. Nbd2 Kb8 14. c4 dxc4 15. bxc4 {0-1 Rajic,I (2078)-Taeger,W (2299) Landesliga Sued 0708 2007 (3.2)}) 9. Bd3 {[%emt 0:11:31]} Nc6 {[%emt 0:02:20]} 10. c3 {[%emt 0:00:42]} d5 {[%emt 0:03:14]} 11. O-O {[%emt 0:09:47]} Bd7 {[%emt 0:02:47]} 12. Na3 {[%emt 0:04:58]} O-O-O {[%emt 0:10:03]} 13. Nc2 {[%emt 0:04:20]} Kb8 {[%emt 0:06:04]} 14. Qd2 {[%emt 0:09:29]} (14. c4 $11) 14... Ka8 {[%emt 0:02:48]} 15. b4 {[%emt 0:01:53]} e5 {[%emt 0:01:52]} 16. Be2 {[%emt 0:01:28]} e4 {[%emt 0:01:02]} 17. Nh4 {[%emt 0:09:58]} f5 {[%emt 0:01:50]} 18. f4 {[%emt 0:01:50]} Bf6 {[%emt 0:01:09]} 19. g3 {[%emt 0:00:21]} Rdg8 {[%emt 0:05:32]} 20. Kh1 $1 {[%emt 0:01:00]} Ne7 {[%emt 0:01:13]} 21. Ne3 {[%emt 0:02:46]} h5 {[%emt 0:03:02]} 22. Qe1 {[%emt 0:05:26]} Be6 {[%emt 0:12:13]} 23. a4 {[%emt 0:02:07]} Qd8 {[%emt 0:02:33]} 24. Qf2 {[%emt 0:02:19]} Qc8 {[%emt 0:05:55]} 25. Rac1 {[%emt 0:01:31]} Ng6 {[%emt 0:00:11] [#]} (25... Qc6 $11 {keeps the balance.}) 26. Nxg6 {[%emt 0:00:31]} (26. c4 $1 $16 {[%cal Rc4d5]} Bd7 (26... Bxd4 $2 27. cxd5 Qf8 28. dxe6 $18) 27. cxd5) 26... fxg6 {[%emt 0:00:05]} 27. h4 {[%emt 0:03:16]} Qd7 {[%emt 0:00:09]} 28. Bd1 {[%emt 0:01:05]} Qe7 {[%emt 0:03:24]} 29. Bb3 {[%emt 0:01:16]} g5 $2 {[%emt 0:02:56][%mdl 8192]} (29... Rd8 $11) 30. fxg5 $18 {[%emt 0:00:43]} Bxg5 {[%emt 0:00:11]} 31. hxg5 {[%emt 0:01:25]} h4 {[%emt 0:00:05]} (31... Rxg5 $142 32. Qf4 (32. Nxd5 Bxd5 33. Bxd5 f4 $18) (32. Bxd5 Rhg8 $18) 32... h4) 32. g4 $1 $18 {[%emt 0:00:40]} (32. gxh4 $2 Qxg5 33. Rc2 Rxh4+ $19 (33... Qxh4+ $2 34. Qxh4 Rxh4+ 35. Rh2 $18) (33... Qxh4+ $2 34. Qxh4 Rxh4+ 35. Rh2 $18)) (32. Nxf5 hxg3+ 33. Kg1 gxf2+ 34. Kxf2 Qxg5 (34... Bxf5 35. Rg1 e3+ 36. Ke2 Rh2+ 37. Ke1 Rxg5 38. Rf1 e2 39. Rxf5 Rg1+ 40. Kd2 e1=Q+ 41. Kd3 Q7e4#) 35. Rc2 Bxf5 36. Ke1 Bg4) 32... fxg4 {[%emt 0:00:30]} 33. Bxd5 {[%emt 0:01:52]} g3 {[%emt 0:02:42]} 34. Qf6 {[%emt 0:02:43]} g2+ {[%emt 0:00:07]} 35. Nxg2 {[%emt 0:00:43]} (35. Kxg2 Rxg5+ 36. Kh2 Qxf6 37. Rxf6 (37. Bxb7+ Kxb7 38. Rxf6 Rg3 $18) 37... Bxd5 $16) 35... Qxf6 {[%emt 0:00:12]} 36. gxf6 {[%emt 0:02:07]} (36. Bxb7+ Kxb7 37. Rxf6 Bd7) 36... Bxd5 {[%emt 0:00:04]} 37. Ne3 {[%emt 0:00:06]} Bf7 {[%emt 0:00:04]} 38. Rg1 {[%emt 0:00:19]} Rf8 {[%emt 0:00:49]} 39. Rcf1 {[%emt 0:00:25]} Bh5 {[%emt 0:09:36]} 40. Rf4 {[%emt 0:00:10]} Bf3+ $2 {[%emt 0:00:00]} (40... Rh6 {was necessary.} 41. Rg5 (41. Rxe4 $2 {too greedy.} Bf3+ 42. Kh2 Bxe4 $19) 41... b5 42. Rxb5 (42. Rxe4 $2 {loses.} Bf3+ 43. Kh2 Bxe4 $19) 42... Bf3+ 43. Kh2 Rhxf6 44. Rxf6 (44. Rxh4 Be2 $16) 44... Rxf6) 41. Kh2 $18 {[%emt 0:30:08]} Rf7 {[%emt 0:21:47]} 42. Rg7 {[%emt 0:04:05]} 1-0

[Event "BL 2024-25"]
[Site "Austria"]
[Date "2024.10.13"]
[Round "5.24"]
[White "Freitag, Manfred"]
[Black "Bacrot, Etienne"]
[Result "0-1"]
[Annotator "TA"]
[ECO "E06"]
[WhiteElo "2340"]
[BlackElo "2658"]
[PlyCount "46"]
[EventDate "2024.08.28"]
[EventType "team-tourn"]
[EventCountry "AUT"]
[SourceTitle "playchess.com"]
[Source "ChessBase"]
[SourceQuality "1"]
[WhiteTeam "Fuerstenfeld-Hartberg"]
[BlackTeam "Linz"]
[TimeControl "40/5400+30:1800+30"]

{[%evp 16,46,16,0,22,0,0,4,16,6,0,2,7,12,36,-33,-40,-30,-26,-32,-32,-26,-29,-23,-29,-31,-37,-22,0,-12,-23,-987,-976]} 1. Nf3 {[%emt 0:00:13]} d5 {[%emt 0:01:13]} 2. d4 {[%emt 0:00:13]} Nf6 {[%emt 0:00:17]} 3. c4 {[%emt 0:00:15]} e6 {[%emt 0:00:07]} 4. g3 {[%emt 0:00:41]} Be7 {[%emt 0:00:45]} 5. Bg2 {[%emt 0:01:17]} O-O {[%emt 0:00:09]} 6. O-O {[%emt 0:00:13]} c6 {[%emt 0:00:20]} 7. Qc2 {[%emt 0:01:00]} b6 {[%emt 0:00:54]} 8. Bf4 {[%emt 0:02:52]} Bb7 {[%emt 0:11:07]} 9. Ne5 {[%emt 0:06:36]} Nfd7 {[%emt 0:02:04]} 10. Rd1 {[%emt 0:05:26]} Nxe5 {[%emt 0:11:01]} 11. dxe5 {[%emt 0:02:04]} g5 {[%emt 0:00:21] The position is equal.} 12. Be3 {[%emt 0:04:50]} Nd7 {[%emt 0:00:08][%cal Bb8d7,Bd7e5,Be5f3,Bf3e1][%mdl 32]} 13. cxd5 {[%emt 0:09:56]} cxd5 {[%emt 0:00:21]} 14. Bd4 {[%emt 0:00:41]} Bc5 {[%emt 0:03:48]} 15. e4 {[%emt 0:23:08]} (15. e3 $14) 15... Bxd4 $15 {[%emt 0:02:41]} 16. Rxd4 {[%emt 0:00:37][%cal Re4d5]} Nxe5 {[%emt 0:00:07] White must now prevent ...Qf6.} 17. exd5 {[%emt 0:00:55]} Qf6 {[%emt 0:00:33]} ({Of course not} 17... exd5 18. Qf5 $14) ({Much worse is} 17... Bxd5 18. Nc3 $11) 18. Qd1 {[%emt 0:01:01] Dodges Nf3+} Bxd5 {[%emt 0:02:32]} 19. Bxd5 {[%emt 0:03:08]} exd5 {[%emt 0:00:02]} 20. Rxd5 {[%emt 0:00:34]} g4 {[%emt 0:18:48]} 21. Nc3 {[%emt 0:08:18]} Nf3+ {[%emt 0:05:18]} 22. Kg2 {[%emt 0:01:14]} Rae8 {[%emt 0:09:36]} 23. Qa4 $2 {[%emt 0:06:08][%mdl 8192] [#]} (23. Qf1 $11) 23... Ne1+ $1 {[%emt 0:04:41] Weighted Error Value: White=0.44/Black=0.06 (flawless) .  Loses game:     	White=1     	---        Mistake:       	White=1     	---        OK:         	White=4     	Black=7      Best:        	---       	Black=1      Strong:       	---       	Black=1} 0-1

[Event "BL 2024-25"]
[Site "Austria"]
[Date "2024.10.13"]
[Round "5.25"]
[White "Dragnev, Valentin"]
[Black "Costa, Leonardo"]
[Result "0-1"]
[Annotator "TA"]
[ECO "D00"]
[WhiteElo "2562"]
[BlackElo "2472"]
[PlyCount "81"]
[EventDate "2024.08.28"]
[EventType "team-tourn"]
[EventCountry "AUT"]
[SourceTitle "playchess.com"]
[Source "ChessBase"]
[SourceQuality "1"]
[WhiteTeam "Ottakring"]
[BlackTeam "Maria Saal"]
[TimeControl "40/5400+30:1800+30"]

{[%evp 28,81,0,-30,-27,-20,-27,-36,-46,-66,-61,-85,-51,-43,-45,-70,-76,-237,-236,-228,-246,-233,-241,-243,-247,-491,-482,-499,-486,-517,-507,-985,-952,-1167,-1091,-5150,-1684,-2316,-1944,-29977,-4024,-29989,-29990,-29982,-29983,-29983,-29984,-29983,-2458,-29983,-29984,-29984,-29985,-29985,-29986,-29984]} 1. d4 {[%emt 0:00:05]} Nf6 {[%emt 0:00:04]} 2. Bg5 {[%emt 0:00:11]} d5 {[%emt 0:00:05]} 3. e3 {[%emt 0:00:17]} c5 {[%emt 0:00:10]} 4. Bxf6 {[%emt 0:00:15]} gxf6 {[%emt 0:00:04]} 5. dxc5 {[%emt 0:00:38]} e6 {[%emt 0:00:23]} 6. Nf3 {[%emt 0:00:13] D00: 1 d4 d5: Unusual lines.} Bxc5 {[%emt 0:00:17]} 7. Be2 {[%emt 0:00:49]} Nc6 {[%emt 0:00:34]} 8. O-O {[%emt 0:00:07]} f5 {[%emt 0:04:14]} 9. Nbd2 {[%emt 0:03:46]} Qf6 {[%emt 0:00:24]} 10. c4 {[%emt 0:01:47]} dxc4 {[%emt 0:00:04]} 11. Nxc4 {[%emt 0:01:07]} O-O {[%emt 0:00:05]} 12. Qb3 $146 {[%emt 0:11:28]} ({Predecessor:} 12. Rc1 Rd8 13. Qa4 a6 14. Nce5 Nxe5 15. Rxc5 Bd7 16. Qb4 Nxf3+ 17. Bxf3 Rab8 18. Rfc1 {1-0 Praggnanandhaa,R (2747)-Naroditsky,D (2619) Bullet Chess Winners blitz 2024 (1.10)}) 12... e5 {[%emt 0:18:38]} 13. Qc3 {[%emt 0:02:14]} Bb4 {[%emt 0:00:51]} 14. Qb3 {[%emt 0:00:18]} Bc5 {[%emt 0:04:08]} 15. Rac1 {[%emt 0:15:38]} e4 {[%emt 0:06:17]} 16. Nfd2 {[%emt 0:00:15]} Rb8 {[%emt 0:03:42]} 17. Nb1 {[%emt 0:18:38]} Be6 {[%emt 0:09:58]} 18. Nc3 {[%emt 0:01:42]} Nb4 {[%emt 0:18:45]} 19. Nb5 {[%emt 0:04:24]} Be7 {[%emt 0:05:33]} 20. a3 {[%emt 0:17:20]} Nc6 {[%emt 0:00:08]} 21. Qc2 {[%emt 0:05:15]} Rfc8 {[%emt 0:06:30]} 22. Qd2 $2 {[%emt 0:01:16] [#]} (22. Qb1 $17) 22... a6 $1 $19 {[%emt 0:02:44]} 23. Nd4 {[%emt 0:00:23]} Rd8 {[%emt 0:00:03]} 24. b4 {[%emt 0:06:31]} Nxd4 {[%emt 0:01:37]} 25. exd4 {[%emt 0:00:02]} Rxd4 {[%emt 0:00:28]} 26. Qc3 $2 {[%emt 0:02:21]} (26. Qf4 Rbd8 27. h4) 26... Rc8 $19 {[%emt 0:02:12]} 27. Qg3+ {[%emt 0:00:18]} Kh8 {[%emt 0:00:06]} 28. Na5 {[%emt 0:00:40]} Rg8 {[%emt 0:01:47]} 29. Qc7 {[%emt 0:01:27]} (29. Qc3 $142 Qg5 30. g3 (30. Qxd4+ $2 Bf6 $19)) 29... Bd6 $19 {[%emt 0:01:25]} 30. Qb6 {[%emt 0:00:12]} f4 {[%emt 0:01:03]} 31. Rfd1 {[%emt 0:00:05]} Be5 {[%emt 0:03:05]} (31... Rxg2+ $142 32. Kxg2 f3+ 33. Kh1 fxe2 34. Qxd4 e1=Q+ (34... exd1=R+ $2 35. Rxd1 Be5 36. Qxe4 $18) 35. Rxe1 Qxd4) 32. Bf1 {[%emt 0:00:45]} f3 {[%emt 0:00:24]} 33. g3 {[%emt 0:01:05]} e3 {[%emt 0:00:17]} 34. Bc4 {[%emt 0:00:25]} exf2+ {[%emt 0:06:31]} 35. Kxf2 {[%emt 0:00:43]} Qh6 {[%emt 0:00:26]} 36. Rxd4 {[%emt 0:00:46]} Qxh2+ {[%emt 0:00:41]} 37. Ke3 {[%emt 0:00:27]} Qh6+ {[%emt 0:02:34]} (37... Bxd4+ 38. Qxd4+ f6 39. Qxf6+ (39. Bxe6 Qe2+ 40. Kf4 Qxe6 $18) 39... Rg7 40. Bxe6 (40. Qxe6 Qxg3 41. Qe8+ Rg8 42. Qxg8+ Qxg8 43. Bxg8 Kxg8 44. Rc7 h5 45. Nxb7 h4) 40... Qe2+ 41. Kf4 Qd2+ 42. Kf5 (42. Kxf3 Qd3+ 43. Kf4 Qd2+ 44. Ke5 Qe3+ 45. Kd6 Qd3+ 46. Bd5 Qxg3+ 47. Qe5 Qg6+ 48. Be6 Qd3+ 49. Kc5 Qd8 $18) 42... Qd3+ 43. Ke5 (43. Kf4 Qd2+ 44. Ke5 Qg5+ 45. Ke4 Qg6+ 46. Ke3 Qg5+ 47. Kd3 Qg6+ 48. Kd2 Qg5+ 49. Kd1 h5)) (37... Bxc4 $142 38. Rd2 Bf4+ (38... Qxg3 $2 39. Nxc4 Qf4+ 40. Kd3 $19) (38... Be2 $2 39. Rd8 $19) 39. Ke4 Re8+ (39... Qxd2 40. Qf6+ Rg7 41. Nxc4 $11) 40. Kf5 Bxd2 (40... Qxd2 $2 41. Qf6+ Kg8 42. Rxc4 $19) 41. Qd4+ f6 (41... Kg8 42. Qg4+ Kf8 43. Nxc4 Qe2 44. Qg8+ Kxg8 45. Nxd2 f2 46. Kg5 Qxd2+ 47. Kh5 Re5+ 48. Kh4 Qh6+ 49. Kg4 Qh5+ 50. Kf4 Qf5#) 42. Qxf6+ Kg8 43. Qh4 Rf8+ 44. Ke5 Qe2+ 45. Qe4 Re8+ (45... Bxc1 46. Qxe2 fxe2 47. Kd6 e1=Q 48. Nxc4 Qe4 49. Ne5 Bb2 50. Ke7 Qxe5+ 51. Kd7 Rf7+ 52. Kd8 Qb8#) 46. Kd6 Qxe4 (46... Rxe4 47. Rc3 Bxc3 48. Nc6 bxc6 49. a4 Bxb4+ 50. Kd7 Re7+ 51. Kd8 Qe6 52. g4 Qd7#) 47. Re1 Bxe1 48. Kc7 Qe7+ 49. Kb6 Bf2#) 38. Rf4 {[%emt 0:00:45]} Rxg3 {[%emt 0:00:04]} ({Not} 38... Bxf4+ 39. gxf4 Re8 40. Qd4+ (40. Nxb7 {leads to mate.} Bxc4+ 41. Kd4 Qxb6+ 42. Nc5 Qf6+ 43. Kxc4 Qxf4+ 44. Kd3 f2 45. Rf1 Rd8+) 40... Kg8 41. Rg1+ (41. Kxf3 Qh3+ 42. Kf2 Qh2+ 43. Kf3 Qh5+ 44. Kf2 Qh4+ 45. Kg1 Qg3+ 46. Kh1 Qh4+ 47. Kg1 Qg3+ 48. Kh1 Qf3+ 49. Kh2 Qh3+ 50. Kg1 Bxc4 $11) 41... Bg4+ 42. Kd3 $18) 39. Qd8+ {[%emt 0:00:23]} Kg7 {[%emt 0:00:20]} 40. Qh4 {[%emt 0:00:15]} Bxf4+ {[%emt 0:01:13]} (40... Qxf4+ 41. Qxf4 Bxf4+ 42. Kxf4 $18) 41. Qxf4 {[%emt 0:30:08]} 0-1

[Event "BL 2024-25"]
[Site "Austria"]
[Date "2024.10.13"]
[Round "5.26"]
[White "Naumann, Alexander"]
[Black "Papp, Gabor"]
[Result "1/2-1/2"]
[Annotator "TA"]
[ECO "E06"]
[WhiteElo "2487"]
[BlackElo "2508"]
[PlyCount "80"]
[EventDate "2024.08.28"]
[EventType "team-tourn"]
[EventCountry "AUT"]
[SourceTitle "playchess.com"]
[Source "ChessBase"]
[SourceQuality "1"]
[WhiteTeam "Maria Saal"]
[BlackTeam "Ottakring"]
[TimeControl "40/5400+30:1800+30"]

{[%evp 11,80,22,29,31,40,46,47,35,49,24,32,52,34,28,35,31,53,57,53,54,46,48,197,195,176,192,193,203,202,206,208,199,218,200,205,226,227,187,172,181,163,141,142,142,150,142,173,157,186,127,242,210,221,157,172,214,302,302,407,388,404,402,381,379,587,344,344,191,191,191,149]} 1. c4 {[%emt 0:00:02]} Nf6 {[%emt 1:31:00]} 2. Nf3 {[%emt 0:00:08]} e6 {[%emt 0:00:05]} 3. g3 {[%emt 0:00:07]} d5 {[%emt 0:00:10]} 4. Bg2 {[%emt 0:00:04]} Be7 {[%emt 0:00:47]} 5. O-O {[%emt 0:00:13]} O-O {[%emt 0:00:05]} 6. d4 {[%emt 0:00:28]} a5 {[%emt 0:01:04]} 7. Qc2 {[%emt 0:03:39]} Nc6 {[%emt 0:00:42]} 8. Bg5 {[%emt 0:03:48]} a4 {[%emt 0:10:47]} 9. Rd1 {[%emt 0:05:24] White is slightly better.} Ra6 {[%emt 0:08:58]} 10. a3 {[%emt 0:12:45]} dxc4 {[%emt 0:04:36]} 11. Qxc4 {[%emt 0:02:44]} Bd7 {[%emt 1:08:26]} 12. Nc3 {[%emt 0:05:40][%cal Oa1b1]} Na5 {[%emt 0:00:39]} 13. Qd3 {[%emt 0:00:07]} Nb3 {[%emt 0:03:54]} 14. Rab1 {[%emt 0:00:22]} h6 {[%emt 0:14:10]} 15. Bxf6 {[%emt 0:01:28]} Bxf6 {[%emt 0:00:02]} 16. Nd2 {[%emt 0:04:16]} Nxd4 {[%emt 0:43:52]} ({Black should play} 16... Rb6 $14) 17. Nde4 $1 $18 {[%emt 0:04:19] Threatens to win with Nxf6+.} (17. e3 Nf5 $11) 17... e5 {[%emt 0:01:31]} 18. e3 {[%emt 0:07:40]} Bg4 {[%emt 0:00:05]} 19. exd4 {[%emt 0:00:28] Nxf6+ would now be deadly.} Bxd1 {[%emt 0:00:05]} 20. Rxd1 {[%emt 0:00:35][%cal Oc3d5] Nd5! is the strong threat.} exd4 {[%emt 0:00:05]} 21. Nxf6+ {[%emt 0:08:54]} Rxf6 {[%emt 0:00:22]} 22. Qxd4 {[%emt 0:00:52]} (22. Bxb7 $6 Qb8 23. Nd5 (23. Nxa4 $2 Qxb7 24. b4 Re8 $19) 23... Qxb7 $16) (22. Nxa4 $6 b6 23. b4 (23. Qxd4 Rd6 $15) 23... Re8) 22... Qxd4 {[%emt 0:00:04]} 23. Rxd4 {[%emt 0:00:08]} Re8 {[%emt 0:00:02]} 24. Bxb7 {[%emt 0:16:01][%cal Ob7e4]} Rb6 {[%emt 0:00:13]} 25. Bd5 {[%emt 0:00:47] Strongly threatening Rf4.} Rxb2 {[%emt 0:00:20]} 26. Rf4 {[%emt 0:00:22]} (26. Rxa4 Rc2 27. Ne4 Re5 $16) 26... Re7 {[%emt 0:01:09]} 27. Nxa4 {[%emt 0:01:25] White is more active.} Rb1+ {[%emt 0:00:47]} 28. Kg2 {[%emt 0:00:07]} Ra1 {[%emt 0:00:04] [#]} 29. Rf3 $1 {[%emt 0:01:39]} g6 {[%emt 0:00:09]} 30. Rc3 {[%emt 0:05:10]} ({White should try} 30. Nb2 $18) 30... Kg7 {[%emt 0:04:53]} (30... Re5 $16) 31. Nc5 {[%emt 0:00:25]} Re5 {[%emt 0:00:27]} 32. Bf3 {[%emt 0:01:36]} Ree1 {[%emt 0:01:00] [#]} 33. Nd3 $1 {[%emt 0:02:25][%csl LRc7,LRe1]} Re6 {[%emt 0:01:11]} (33... Rg1+ {might work better.} 34. Kh3 c5) 34. Rxc7 {[%emt 0:05:53] Black must now prevent Bd5.} Rxa3 {[%emt 0:02:07]} 35. Bd5 {[%emt 0:00:11]} Rf6 {[%emt 0:00:36]} 36. Ne5 {[%emt 0:01:01]} Ra5 {[%emt 0:00:03]} 37. Rd7 {[%emt 0:01:10]} (37. Rxf7+ Rxf7 38. Bxf7 Rxe5 $15) 37... h5 {[%emt 0:16:03]} (37... Kf8 $142 38. h4 (38. Nxf7 Rxd5 39. Rxd5 Rxf7 $11) 38... Rf5) 38. f4 {[%emt 0:01:01]} (38. Nxf7 Rxd5 39. Rxd5 Rxf7 $11) 38... g5 {[%emt 0:13:56]} 39. Bxf7 {[%emt 0:04:14]} (39. Nxf7 $142 gxf4 40. Ng5+ Kh6 41. h4 fxg3 42. Rh7+ (42. Kxg3 Ra3+ 43. Kg2 Re3 $18) 42... Kg6 43. Be4+ Raf5 44. Re7 (44. Bxf5+ Kxf5 45. Kxg3 Kg6 $18) (44. Kxg3 Ra6 $18)) 39... gxf4 {[%emt 0:05:29]} 40. Bxh5+ {[%emt 0:01:06]} Kf8 {[%emt 0:00:51] Weighted Error Value: White=0.19 (very precise) /Black=0.27 (precise) .  Mistake:       	White=2     	Black=4      Inaccurate:     	White=1     	Black=1      OK:         	White=15    	Black=7      Best:        	White=2     	Black=8      Strong:       	White=3     	---} 1/2-1/2